Cogmind - Beta 16.1 @@@ ROGUE MODE // 2026.03.14 @ 19:30:47 Player: McSaucyNugget Result: Destroyed by G-47 Trooper with Particle Gun Performance ------------- Evolutions (1) 500 Regions Visited (3) 600 Robots Destroyed (13) 65 Value Destroyed (348) 348 Prototype IDs (0) 0 Alien Tech Used (0) 0 Bonus (168) 168 TOTAL SCORE: 1681 Bonus ------- Follower Combat Kills 168 Cogmind --------- Core Integrity 0/400 Matter 300/300 Energy 100/100 System Corruption 3% Temperature Cool (9) Movement Core (200) Ox3 Location -9/Storage Parts ------- > --- POWER (1) -------- (None) > --- PROPULSION (3) --- (None) > --- UTILITY (3) ------ Medium Storage Unit > --- WEAPON (2) ------- (None) > --- INVENTORY (10) --- High-capacity Battery (250) Peak State ------------ > --- POWER ------------ Light Ion Engine > --- PROPULSION ------- Light Treads Light Treads > --- UTILITY ---------- Small Storage Unit Medium Storage Unit > --- WEAPON ----------- Light Assault Rifle Light Assault Rifle > --- INVENTORY -------- (None) [Rating: 7] Favorites ----------- Power Light Ion Engine Engine Light Ion Engine Propulsion Light Treads Treads Light Treads Utility Medium Storage Unit Storage Medium Storage Unit Protection Light Armor Plating Weapon Light Assault Rifle Ballistic Gun Light Assault Rifle Build | -11 -10 -9 -9 ------- Run | Yrd Mat Mat Sto Slots Evolved 2 | . . 2 . Power . | . . . . Propulsion 1 | . . 1 . Utility 1 | . . 1 . Weapon . | . . . . Parts Attached 9 | 6 3 . . Power 1 | 1 . . . Engine 1 | 1 . . . Core . | . . . . Reactor . | . . . . Propulsion 2 | 2 . . . Treads 2 | 2 . . . Leg . | . . . . Wheel . | . . . . Hover . | . . . . Flight . | . . . . Utility 4 | 1 3 . . Device . | . . . . Storage 3 | 1 2 . . Processor . | . . . . Hackware . | . . . . Protection 1 | . 1 . . Artifact . | . . . . Weapon 2 | 2 . . . Energy Gun . | . . . . Energy Cannon . | . . . . Ballistic Gun 2 | 2 . . . Ballistic Cannon . | . . . . Launcher . | . . . . Special Weapon . | . . . . Impact Weapon . | . . . . Slashing Weapon . | . . . . Piercing Weapon . | . . . . Special Melee Weapon . | . . . . Unidentified Prototypes . | . . . . Parts Lost 6 | . . . 6 Power 1 | . . . 1 Propulsion 2 | . . . 2 Utility 1 | . . . 1 Weapon 2 | . . . 2 Highest Loss Streak 6 | . . . 6 To Critical Strikes . | . . . . Average Backups . | . . 1 1 Power . | . . . . Propulsion . | . . . . Utility . | . . 1 1 Weapon . | . . . . Tool/Special . | . . . . Unused Backups . | . . . . Power . | . . . . Propulsion . | . . . . Utility . | . . . . Weapon . | . . . . Tool/Special . | . . . . Average Slot Usage (%) 88 | . 96 77 56 Engine 13 | . 14 11 8 Treads 25 | . 28 22 13 Storage 13 | . 14 11 11 Protection 10 | . 10 11 8 Ballistic Gun 25 | . 28 22 15 Peak Build Rating 7 | 6 7 7 7 Average Rating 6 | 4 6 7 5 On Entrance 5 | . 6 7 7 Avg Prop Armor Cover (%) . | . . . . Naked Turns . | . . . . Heaviest Build 20 | 10 20 18 18 Greatest Support 40 | 40 40 40 40 Greatest Overweight (x) 3 | . . . 3 Average Overweight (x) . | . . . . Largest Inventory Capacity 10 | 8 10 10 10 Average Capacity 9 | 6 9 10 10 Most Carried 1 | . 1 1 1 Average Carried . | . . 1 1 Final Capacity 10 | 8 10 10 10 Final Carried 1 | . 1 1 1 Class Distribution -------------------- 100% | Mutant Dominant Class ---------------- Mutant | -10/Materials Mutant | -9/Materials Mutant | -9/Storage Resources | -11 -10 -9 -9 ----------- Run | Yrd Mat Mat Sto Matter Collected 395 | 251 127 . 17 Remotely . | . . . . Salvage Created 459 | . 309 . 150 Parts 31 | . 25 . 6 Haulers Intercepted 1 | . 1 . . Recyclers Shooed . | . . . . Parts Field Recycled . | . . . . Retrieved Matter . | . . . . Parts Self-Destructed . | . . . . Prevented . | . . . . Parts Restored . | . . . . Kills | -11 -10 -9 -9 ------- Run | Yrd Mat Mat Sto Combat Hostiles Destroyed 11 | . 8 . 3 Guns 11 | . 8 . 3 Classes Destroyed 5 | . 4 . 1 Hauler 1 | . 1 . . Operator 1 | . 1 . . Swarmer 3 | . 3 . . Grunt 7 | . 5 . 2 Brawler 1 | . . . 1 Best Kill Streak 3 | . 3 . 2 Combat Bots Only 3 | . 3 . 2 Max Kills in Single Turn 1 | . 1 . 1 Gunslinging . | . . . . Exploded . | . . . . Melee . | . . . . Uniques/NPCs Destroyed . | . . . . Combat | -11 -10 -9 -9 -------- Run | Yrd Mat Mat Sto Hostile Shots Fired 117 | . 42 . 75 Missed 33 | . 9 . 24 Hits 84 | . 33 . 51 Melee 3 | . . . 3 Projectile 81 | . 33 . 48 Critical Strikes 4 | . 2 . 2 Damage Taken 1163 | . 420 . 743 Core 468 | . 53 . 415 Absorbed by Shields . | . . . . Core Remaining (%) 89 | 100 78 . . Volleys Fired 77 | . 45 . 32 Largest 2 | . 2 . 2 Hottest 40 | . 40 . 40 Shots Fired 134 | . 90 . 44 Gun 134 | . 90 . 44 Cannon . | . . . . Launcher . | . . . . Special . | . . . . Kinetic 134 | . 90 . 44 Thermal . | . . . . Explosive . | . . . . Electromagnetic . | . . . . Robot Hit Streak 13 | . 13 . 13 Robot Miss Streak 3 | . 3 . 2 Penetration Max . | . . . . Secondary Targets . | . . . . Shots Hit Robots 100 | . 67 . 33 Core Hits 39 | . 25 . 14 Critical Kills 1 | . 1 . . Critical Parts Destroyed . | . . . . Critical Strikes 1 | . 1 . . Destroy 1 | . 1 . . Melee Attacks . | . . . . Impact . | . . . . Slashing . | . . . . Piercing . | . . . . Sneak Attacks . | . . . . Combat Hostiles . | . . . . Follow-up Attacks . | . . . . Damage Inflicted 844 | . 549 . 295 Guns 820 | . 541 . 279 Cannons . | . . . . Explosions . | . . . . Melee . | . . . . Ramming 24 | . 8 . 16 Kinetic 820 | . 541 . 279 Thermal . | . . . . Explosive . | . . . . Electromagnetic . | . . . . Impact . | . . . . Slashing . | . . . . Piercing . | . . . . Highest Corruption 3 | . . . 3 Average Corruption 1 | . . . 1 Corruption Purged . | . . . . Corruption Blocked . | . . . . Overload Shots . | . . . . Overflow Damage . | . . . . Projectiles . | . . . . Explosions . | . . . . Melee . | . . . . Knockbacks . | . . . . Impact . | . . . . Kinetic . | . . . . Secondary . | . . . . Self-Inflicted Damage 5 | . . . 5 Shots . | . . . . Rammed 20 | . 3 . 17 Targets Rammed 20 | . 3 . 17 Kicked . | . . . . Crushed . | . . . . Highest Temperature 54 | . 54 . 9 Average Temperature 14 | . 16 . 6 Received Heat Transfer 603 | . 234 . 369 Siege Activations . | . . . . Martial Activations . | . . . . Shielding Activations . | . . . . Robots Disrupted . | . . . . Combat Hostiles . | . . . . Robots Corrupted . | . . . . Combat Hostiles . | . . . . Parts Fried . | . . . . Impact Corruptions . | . . . . Robots Melted . | . . . . Combat Hostiles . | . . . . Parts Melted . | . . . . Heat Transferred . | . . . . Parts Sabotaged . | . . . . Parts Stolen . | . . . . Parts Stripped . | . . . . Power Chain Reactions . | . . . . Alert | -11 -10 -9 -9 ------- Run | Yrd Mat Mat Sto Maximum Alert Level . | . . . . Low Security (%) 100 | 100 100 100 100 Level 1 . | . . . . Level 2 . | . . . . Level 3 . | . . . . Level 4 . | . . . . Level 5 . | . . . . High Security . | . . . . Max Security . | . . . . Peak Influence 140 | . 65 13 140 Initial 13 | . . 13 5 Average 24 | . 16 13 73 Influence Increases 457 | . 227 . 230 Destroy 0b10 Robot/C 340 | . 160 . 180 Destroy 0b10 Robot/NC 10 | . 10 . . Destroy Leader 72 | . 42 . 30 Allied During Kill 20 | . . . 20 Lose Combat Pursuer 15 | . 15 . . Influence Decreases 397 | . 195 19 183 Entered New Map 27 | . . 19 8 Time Decay 270 | . 195 . 75 Lost Part 60 | . . . 60 Lost Ally 40 | . . . 40 Squads Dispatched 7 | . 2 1 4 Investigation 2 | . 1 . 1 Extermination . | . . . . Reinforcement 3 | . 1 1 1 Assault 2 | . . . 2 Garrison . | . . . . Intercept . | . . . . Searches Triggered . | . . . . Construction Impeded . | . . . . Haulers Reinforced . | . . . . Active Scanning Responses . | . . . . Cargo Convoy Interrupts . | . . . . Stealth | -11 -10 -9 -9 --------- Run | Yrd Mat Mat Sto Distress Signals . | . . . . Communications Jammed . | . . . . Distress Signals . | . . . . Times Spotted 33 | . 18 . 15 Peak Tracking Total 6 | . 3 1 6 Tactical Retreats 1 | . 1 . . Traps | -11 -10 -9 -9 ------- Run | Yrd Mat Mat Sto Traps Triggered 3 | . 2 . 1 Indirectly . | . . . . Trap Hack Attempts . | . . . . Triggered . | . . . . Disarmed . | . . . . Reprogrammed . | . . . . Reused . | . . . . Traps Extracted . | . . . . Installed . | . . . . Triggered . | . . . . Machines | -11 -10 -9 -9 ---------- Run | Yrd Mat Mat Sto Machines Disabled . | . . . . Max in Single Turn . | . . . . Machines Repaired . | . . . . Machines Dismantled . | . . . . Machines Sabotaged . | . . . . Overloaded Fab Kills . | . . . . Hacking | -11 -10 -9 -9 --------- Run | Yrd Mat Mat Sto Machines Accessed . | . . . . Terminals . | . . . . Fabricators . | . . . . Repair Stations . | . . . . Recycling Units . | . . . . Scanalyzers . | . . . . Garrison Access . | . . . . Total Hacks . | . . . . Successful . | . . . . Failed . | . . . . Catastrophic . | . . . . Database Lockouts . | . . . . Manual 1 | . 1 . . Terminals . | . . . . Fabricators . | . . . . Repair Stations . | . . . . Recycling Units . | . . . . Scanalyzers . | . . . . Garrison Access . | . . . . Terminal Hacks . | . . . . Fabricator Hacks . | . . . . Repair Station Hacks . | . . . . Recycling Unit Hacks . | . . . . Scanalyzer . | . . . . Garrison Access Hacks . | . . . . Unauthorized Hacks . | . . . . Terminals . | . . . . Fabricators . | . . . . Repair Stations . | . . . . Recycling Units . | . . . . Scanalyzers . | . . . . Garrison Access . | . . . . Data Cores Recovered 1 | . 1 . . Used . | . . . . Hacking Detections 1 | . 1 . . Full Trace Events . | . . . . Feedback Events . | . . . . Feedback Blocked . | . . . . Robot Schematics Acquired . | . . . . Robots Built . | . . . . Authchips . | . . . . Time . | . . . . Total Robot Build Rating . | . . . . Part Schematics Acquired . | . . . . Parts Built . | . . . . Authchips . | . . . . Time . | . . . . Total Part Build Rating . | . . . . Part Studies Acquired . | . . . . Parts Repaired . | . . . . Time . | . . . . Parts Recycled . | . . . . Recycled Matter . | . . . . Retrieved Matter . | . . . . Retrieved Components . | . . . . Parts Scanalyzed . | . . . . Part Schematics Acquired . | . . . . Parts Damaged . | . . . . Bothacking | -11 -10 -9 -9 ------------ Run | Yrd Mat Mat Sto Used RIF Installer . | . . . . Robots Hacked . | . . . . Non-combat . | . . . . Combat . | . . . . Robot Hacks Applied . | . . . . Relay Couplers Released . | . . . . Fabnet Peak Effective % . | . . . . Robots Rewired . | . . . . Allies Hacked . | . . . . Hacks Repelled . | . . . . Allies | -11 -10 -9 -9 -------- Run | Yrd Mat Mat Sto Total Allies 2 | . . . 2 Largest Group 2 | . . . 2 Highest-Rated Group 62 | . . . 62 Highest-Rated Ally 31 | . . . 31 Total Orders . | . . . . Ally Attacks 31 | . . . 31 Total Damage 569 | . . . 569 Kills 6 | . . . 6 Allies Corrupted 1 | . . . 1 Allies Melted . | . . . . Intel | -11 -10 -9 -9 ------- Run | Yrd Mat Mat Sto Active Infowar (turns) . | . . . . Robot Analysis Total . | . . . . Derelict Logs Recovered . | . . . . Drone Launches . | . . . . Drone Recoveries . | . . . . Exploration | -11 -10 -9 -9 ------------- Run | Yrd Mat Mat Sto Turns Passed 1152 | 68 894 8 182 Spaces Moved 527 | 41 430 6 50 Core 9 | 5 . . 4 Treads 518 | 36 430 6 46 Legs . | . . . . Wheels . | . . . . Hover . | . . . . Flight . | . . . . Fastest Speed 50 | 50 160 160 160 Average Speed 159 | 146 160 160 163 Slowest Speed 200 | 160 160 160 200 Overloaded Moves . | . . . . Propulsion Burnouts . | . . . . Robots Hopped . | . . . . Potential Cave-ins . | . . . . Cave-ins Triggered . | . . . . Exploration Rate (%) 22 | 3 73 1 14 Regions Visited 3 Branch Regions 1 Pre-discovered Areas . | . . . . Known Exits Taken . | . . . . Unknown Exits Taken 3 | 1 1 1 . Scrap Searched . | . . . . Spaces Dug . | . . . . Terrain Destroyed . | . . . . Melee . | . . . . Projectile . | . . . . AOE . | . . . . Terrain Rammed . | . . . . Walls Destroyed . | . . . . Machines Disabled . | . . . . Actions | -11 -10 -9 -9 --------- Run | Yrd Mat Mat Sto Total 712 | 46 562 5 99 Wait 78 | . 78 . . Move 524 | 40 429 5 50 Hop . | . . . . Pick Up . | . . . . Fast Attach 10 | 6 4 . . Attach . | . . . . Detach 2 | . 2 . . Swap . | . . . . Drop 1 | . 1 . . Fire 77 | . 45 . 32 Melee . | . . . . Ram 17 | . . . 17 Kick . | . . . . Crush 3 | . 3 . . Escape Stasis . | . . . . Rewire . | . . . . Trap . | . . . . Miscellaneous . | . . . . Route ------- -11/Scrapyard -10/Materials (discovered 3 exits: [*Mat x2] / [*Min]) -9/Materials -9/Storage History --------- Turn | Location | Event 39 | -11/Scrapyard | Discovered new exit (range 16) 69 | -11/Scrapyard | Entered Materials 308 | -10/Materials | Build established: Mutant 436 | -10/Materials | Discovered new exit (range 11) 523 | -10/Materials | Discovered new exit (range 16) 708 | -10/Materials | Discovered new exit (range 16) 963 | -10/Materials | Entered another Materials area 963 | -9/Materials | Evolved 2 slots: Propulsion x1, Utility x1 963 | -9/Materials | Discovered new exit (range 5) 971 | -9/Materials | Entered Storage 992 | -9/Storage | Met a pair of Derelict thieves 1130 | -9/Storage | Core integrity fell below 50% 1142 | -9/Storage | Lost 6 parts (1p2n1u2w) 1145 | -9/Storage | Core integrity fell below 20% 1153 | -9/Storage | Destroyed by G-47 Trooper with Particle Gun Last Messages --------------- 01130_ Destabilizing: Core damaged (-12). 01134_ Slammed into G-34 Mercenary. 01135_ R-06 Scavenger collects Beamcaster. 01135_ K-01 Serf collects debris. 01136_ Slammed into G-34 Mercenary. 01136_ Destabilizing: System corrupted (+2). 01138_ Slammed into G-34 Mercenary. 01139_ R-06 Scavenger collects Sml. Laser. 01141_ R-06 Scavenger collects Aluminum Leg. 01142_ Slammed into G-34 Mercenary. 01143_ M-13 Machinist repairs A-02 Transporter. 01144_ R-06 Scavenger collects Aluminum Leg. 01144_ Slammed into G-34 Mercenary. 01146_ R-06 Scavenger collects Prototype Energy Cannon. 01146_ M-13 Machinist repairs A-02 Transporter. 01146_ Slammed into G-34 Mercenary. 01150_ R-06 Scavenger collects Aluminum Leg. 01151_ K-01 Serf collects debris. 01152_ Slammed into G-34 Mercenary. Map ----- +----------------------------------------------------+ | ?????????????????????????????????????????????? | | ?????????????????????????????????????????????? | | ?????????????????????????????????????????????? | | ?????????????????????????????????????????????? | | ?????????????????????????????????????????????? | | ????????????????????? ???????????????????????? | | ????????????????????? ???????????????????????? | | ????????????????????? ???????????????????????? | | ????????????????????? ???????????????????????? | | ?????????????????????%???????????????????????? | | ????????????????????? ???????????????????????? | | ????????????????????? ???????????????????????? | | ????????????????????# #????""#???????????????? | | ????????????????????# #??""R"###?????????????? | | ????????????????????# ###"" "# #?????????????? | | ????????????????????# # #?????????????? | | ????????????????????+ # #?????????????? | | ????????????????????# # /==##????????????? | | ????????????????????#%# i== ""#???????????? | | ?????????????######## + == Y"????????????? | | ?????????????# #%# "?????????????? | | ?????????????# #%# ???????????????? | | ?????????????# #%# %% ????????????????? | | ?????????????# #[# %"?????????????????? | | ?????????????# #%###k################???? | | ?????????????# #rm%g@r%%g #???? | | ?????????????# aa% %g% [%! #???? | | ?????????????# # % ! #???? | | ?????????????# ###############+######???? | | ?????????????# #????????????## #?????? | | ?????????????# #????????????#T #?????? | | ?????????????# #???????????###" "##?????? | | ?????????????# #???????????# #?????? | | ?????????????#######????????????#!! #?????? | | ????????????????????????????????# ! !!#?????? | | ????????????????????????????????#! ! !#?????? | | ????????????????????????????????########?????? | | ?????????????????????????????????????????????? | | | | | | | | | | | | | | | | | | | | | | | | | +----------------------------------------------------+ Best States ------------- Heat Dissipation 28 Energy Generation 10 Energy Capacity 125 Matter Stores 300 Matter Capacity 300 Sight Range 16 Terrain Scan Density 10 Armor Coverage 150 Evasion (%) 40 Recoil Reduction 2 Item Schematics ----------------- None Robot Schematics ------------------ None Fabricated ------------ Nothing Repaired ---------- Nothing Studied --------- None Alien Tech Used ----------------- None Achievements -------------- None Challenges ------------ None Game ------ Seed PointyTractorMiniperforator Manual? 0 Play Time 00:13:07 Cumulative 303.9 hours Start 2026.03.14 @ 19:18:52 End 2026.03.14 @ 19:30:47 Sessions 1 Manual Loads 0 Difficulty Rogue Special Mode None Game No. 122 Rogue 122 Adventurer 0 Explorer 0 Win Type - Total 30 Types 10/4/6/2/1/0/1/2/2/2 Lore% 82 Gallery% 77 Achievement% 68 Wizard Run 0 Options --------- Layout 2 ASCII 0 Keyboard 1 Movement Vi Keybinds 0 Fullscreen 2 Font 24/Smallcaps Map View 50x44 Zoom Use 4% Tactical HUD 1 Map Filters NONE Filters NONE Steam X RUN: ae1b3930-d43d-4e8f-a096-4a964a30926b